bitfinex/quotes_SOLUSD_20250602
["timestamp","ask_amount","ask_price","bid_price","bid_amount"]
[1748902300304,41.04,155.76,155.75,17.64054574]
[1748902301132,1.6506,155.8,155.75,33.6919101]
[1748902301315,68.54334852,155.79,155.75,33.6919101]
[1748902301811,68.54334852,155.79,155.75,61.19525862]
[1748902302216,68.54334852,155.79,155.75,33.6919101]
[1748902303726,41.04,155.79,155.75,61.19525862]
[1748902304931,68.54334852,155.79,155.75,33.6919101]
[1748902307430,27.50334852,155.79,155.75,33.6919101]
[1748902307621,41.02,155.79,155.75,61.19525862]
[1748902307937,6.1859,155.82,155.78,27.50334852]
[1748902308232,6.1859,155.82,155.75,65.79463883]
[1748902308233,68.52334852,155.81,155.76,27.50334852]
[1748902308647,68.52334852,155.81,155.75,33.6919101]
[1748902308813,6.1859,155.82,155.75,33.6919101]
[1748902308814,27.50334852,155.78,155.75,33.6919101]
[1748902309016,27.50334852,155.79,155.75,33.6919101]
[1748902310046,41.02,155.8,155.75,17.64054574]
[1748902310253,27.50334852,155.79,155.75,17.64054574]
[1748902310452,27.50334852,155.8,155.75,45.14389426]
[1748902310654,41.02,155.8,155.77,27.50334852]
[1748902311070,41.02,155.8,155.75,33.6919101]
[1748902311071,41.02,155.8,155.76,27.50334852]
[1748902311747,41.02,155.8,155.77,6.41972138]
[1748902312144,27.50334852,155.81,155.77,6.41972138]
[1748902312487,68.52334852,155.81,155.77,6.41972138]
[1748902312844,41.02,155.81,155.77,22.46902484]
[1748902313076,68.52334852,155.81,155.77,22.46902484]
[1748902313450,146.4,155.78,155.77,49.97237336]
[1748902314848,146.4,155.83,155.77,49.97237336]
[1748902315159,146.4,155.83,155.8,27.50334852]
[1748902315479,187.42,155.83,155.79,27.50334852]
[1748902315842,187.42,155.83,155.8,6.41848523]
[1748902316080,187.42,155.83,155.8,33.92183375]
[1748902317054,146.4,155.83,155.8,49.96804684]
[1748902317956,146.4,155.83,155.8,22.46469832]
[1748902318285,41.02,155.86,155.82,27.50334852]
[1748902318589,1.5584,155.87,155.81,11.2]
[1748902318590,1.5584,155.87,155.83,27.50334852]
[1748902318775,1.5584,155.87,155.81,11.2]
[1748902318776,42.5784,155.87,155.81,11.2]
[1748902319093,70.08174852,155.87,155.82,27.50334852]
[1748902319401,42.5784,155.87,155.83,27.50334852]
[1748902319976,42.5784,155.87,155.84,6.41683778]
[1748902320174,70.08174852,155.87,155.84,6.41683778]
[1748902320563,70.08174852,155.87,155.83,6.41718892]
[1748902320774,27.50334852,155.84,155.78,17.61930928]
[1748902320983,68.50334852,155.83,155.78,45.1226578]
[1748902321166,41.0,155.82,155.78,61.170931]
[1748902322072,41.0,155.84,155.81,27.50334852]
[1748902322274,27.5584,155.87,155.82,27.50334852]
[1748902322275,29.06174852,155.87,155.82,27.50334852]
[1748902322474,41.0,155.86,155.82,27.50334852]
[1748902324396,41.0,155.86,155.83,6.41724956]
[1748902325588,41.0,155.86,155.83,33.92059808]
[1748902326291,42.5584,155.87,155.83,33.92059808]
[1748902326491,42.5584,155.87,155.83,49.96372199]
[1748902329418,1.5584,155.87,155.83,49.96372199]
[1748902329619,32.21826157,155.9,155.85,27.50334852]
[1748902329620,41.0,155.89,155.85,27.50334852]
[1748902329859,74.57944852,155.9,155.85,27.50334852]
[1748902330427,27.50334852,155.89,155.85,6.41642605]
[1748902330740,68.48334852,155.89,155.85,6.41642605]
[1748902331124,27.50334852,155.87,155.85,6.41642605]
[1748902331352,40.98,155.89,155.84,17.5967518]
[1748902331353,59.50590412,155.86,155.84,17.5967518]
[1748902331522,59.50590412,155.88,155.84,17.5967518]
[1748902332934,6.0761,155.9,155.85,18.52590412]
[1748902333249,33.50976229,155.9,155.85,27.43366229]
[1748902334545,33.50976229,155.9,155.86,6.41601437]
[1748902334719,146.4,155.89,155.86,6.41601437]
[1748902335333,173.83366229,155.89,155.86,6.41601437]
[1748902335824,146.4,155.89,155.86,6.41601437]
[1748902336227,146.4,155.89,155.87,27.43366229]
[1748902336540,146.4,155.89,155.88,6.41519117]
[1748902337825,146.4,155.89,155.87,33.84926503]
[1748902338048,146.4,155.89,155.87,6.41560274]
[1748902339832,146.4,155.89,155.86,6.41596752]
[1748902340036,173.83366229,155.89,155.86,6.41596752]
[1748902341540,173.83366229,155.89,155.85,6.41642605]
[1748902341935,27.43366229,155.88,155.84,17.59667187]
[1748902342253,27.43366229,155.87,155.84,17.59666527]
[1748902342752,68.39366229,155.88,155.84,17.59666527]
[1748902343161,27.43366229,155.85,155.79,11.18]
[1748902343344,27.43366229,155.83,155.79,11.18]
[1748902343746,27.43366229,155.83,155.8,6.41848523]
[1748902344477,220.87156229,155.87,155.82,27.43366229]
[1748902344639,220.87156229,155.87,155.81,27.43366229]
[1748902344640,27.43366229,155.86,155.81,27.43366229]
[1748902345770,220.87156229,155.87,155.82,6.4176614]
[1748902345971,220.87156229,155.87,155.82,33.85132369]
[1748902347242,187.36,155.87,155.83,27.43366229]
[1748902347640,187.36,155.87,155.82,22.46181491]
[1748902347641,27.43366229,155.84,155.8,6.41848523]
[1748902347842,27.43366229,155.83,155.8,6.41848523]
[1748902348066,27.43366229,155.82,155.8,6.41848523]
[1748902348569,173.83366229,155.83,155.8,6.41848523]
[1748902348755,146.4,155.83,155.8,6.41848523]
[1748902349139,146.4,155.83,155.8,33.85214752]
[1748902349345,18.79181043,155.89,155.82,27.43366229]
[1748902349346,27.43366229,155.88,155.82,27.43366229]
[1748902349655,68.39366229,155.88,155.83,27.43366229]
[1748902350154,27.43366229,155.86,155.81,27.43366229]
[1748902351968,27.43366229,155.86,155.82,6.4176614]
[1748902352272,27.43366229,155.87,155.82,6.4176614]
[1748902352572,146.4,155.91,155.85,27.43366229]
[1748902352749,146.4,155.91,155.83,11.18]
[1748902353068,27.43366229,155.9,155.83,11.18]
[1748902353242,27.43366229,155.9,155.84,27.43366229]
[1748902353445,146.4,155.91,155.84,27.43366229]
[1748902353669,173.83366229,155.91,155.85,27.43366229]
[1748902353858,27.43366229,155.9,155.83,11.18]
[1748902354050,27.43366229,155.9,155.84,6.41683778]
[1748902354252,146.4,155.91,155.84,6.41683778]
[1748902354446,27.43366229,155.89,155.84,33.85050007]
[1748902354652,27.43366229,155.88,155.84,6.41683778]
[1748902355244,68.39366229,155.89,155.84,33.85050007]
[1748902355449,40.96,155.89,155.84,49.89259452]
[1748902355750,68.39366229,155.89,155.84,49.89259452]
[1748902356179,68.39366229,155.89,155.84,33.85050007]
[1748902356384,40.96,155.89,155.84,33.85050007]
[1748902356754,40.96,155.89,155.85,27.43366229]
[1748902357152,27.43366229,155.9,155.85,27.43366229]
[1748902357477,214.79366229,155.91,155.85,27.43366229]
[1748902357848,214.79366229,155.91,155.84,48.45893223]
[1748902358351,40.96,155.9,155.84,48.45893223]
[1748902358872,68.39366229,155.9,155.84,33.85050007]
[1748902359262,68.39366229,155.9,155.85,27.43366229]
[1748902359463,40.96,155.9,155.85,27.43366229]
[1748902360365,40.96,155.9,155.86,27.43366229]
[1748902360569,146.4,155.89,155.86,27.43366229]
[1748902361067,146.4,155.89,155.85,27.43366229]
[1748902361273,146.4,155.89,155.85,18.51796491]
[1748902361653,146.4,155.89,155.85,29.67796491]
[1748902361857,146.4,155.89,155.86,18.51796491]
[1748902362283,146.4,155.89,155.87,6.41560274]
[1748902366884,18.51796491,155.88,155.85,11.16]
[1748902367211,18.51796491,155.86,155.85,11.16]
[1748902367389,146.4,155.85,155.81,6.41807329]
[1748902367587,146.4,155.84,155.81,6.41807329]
[1748902369600,146.4,155.84,155.82,18.51796491]
[1748902371295,146.4,155.84,155.83,6.41724956]
[1748902373309,146.4,155.84,155.81,6.41807329]
[1748902374090,164.91796491,155.84,155.81,6.41807329]
[1748902374288,18.51796491,155.83,155.81,6.41807329]
[1748902375316,164.91796491,155.84,155.81,6.41807329]
[1748902376725,18.51796491,155.82,155.76,6.42013353]
[1748902376882,40.94,155.81,155.76,24.93809844]
[1748902377088,40.94,155.81,155.76,48.47046737]
[1748902377286,154.4956,155.83,155.79,18.51796491]
[1748902377487,154.4956,155.83,155.77,16.04930346]
[1748902377686,154.4956,155.83,155.78,18.51796491]
[1748902377888,154.4956,155.83,155.79,18.51796491]
[1748902379190,154.4956,155.83,155.8,6.41848523]
[1748902380714,146.4,155.83,155.81,18.51796491]
[1748902380912,164.91796491,155.83,155.8,6.41848523]
[1748902381219,205.85796491,155.83,155.8,6.41848523]
[1748902381397,205.85796491,155.83,155.79,6.41889723]
[1748902382395,187.34,155.83,155.79,24.93686214]
[1748902383213,187.34,155.83,155.79,40.98410522]
[1748902384017,187.34,155.83,155.8,18.51796491]
[1748902384354,40.94,155.85,155.81,18.51796491]
[1748902384619,59.45796491,155.86,155.81,18.51796491]
[1748902385636,40.94,155.86,155.82,6.4176614]
[1748902385837,146.4,155.87,155.84,18.51796491]
[1748902386033,18.51796491,155.9,155.85,18.51796491]
[1748902386322,40.94,155.89,155.84,18.51796491]
[1748902386642,20.14876491,155.91,155.86,18.51796491]
[1748902386809,40.94,155.9,155.86,18.51796491]
[1748902386993,59.45796491,155.9,155.85,29.67796491]
[1748902387435,40.94,155.9,155.85,29.67796491]
[1748902387611,152.9028,155.92,155.89,6.41477965]
[1748902387818,146.4,155.92,155.89,6.41477965]
[1748902388230,164.91796491,155.92,155.89,6.41477965]
[1748902388403,205.85796491,155.92,155.89,6.41477965]
[1748902388598,187.34,155.92,155.89,6.41477965]
[1748902389101,146.4,155.92,155.89,6.41477965]
[1748902389304,187.34,155.92,155.89,6.41477965]
[1748902389726,187.34,155.92,155.88,6.41519117]
[1748902389908,187.34,155.92,155.88,24.93315608]
[1748902390109,146.4,155.92,155.89,18.51796491]
[1748902390308,14.64255544,155.95,155.91,18.51796491]
[1748902390509,146.4,155.99,155.91,18.51796491]
[1748902390510,146.4,155.99,155.94,18.51796491]
[1748902390820,40.94,155.98,155.94,18.51796491]
[1748902391219,164.91796491,155.99,155.94,26.0]
[1748902391398,146.4,155.99,155.94,44.51796491]
[1748902391598,146.4,155.99,155.95,6.41231163]
[1748902391800,67.51446491,156.0,155.95,6.41231163]
[1748902392395,18.51796491,155.98,155.92,6.4135454]
[1748902392705,18.51796491,155.99,155.94,18.51796491]
[1748902392904,48.9965,156.0,155.95,18.51796491]
[1748902393116,67.51446491,156.0,155.95,18.51796491]
[1748902393297,67.49446491,156.0,155.94,18.51796491]
[1748902393910,18.51796491,155.99,155.95,6.41231163]
[1748902395722,146.4,156.0,155.96,18.51796491]
[1748902396329,18.51796491,155.98,155.93,24.931099]
[1748902396529,146.4,156.0,155.96,18.51796491]
[1748902397401,146.4,156.0,155.97,6.41148938]
[1748902398044,164.91796491,156.0,155.96,6.41180788]
[1748902398212,18.51796491,155.99,155.96,6.41180788]
[1748902398604,164.91796491,156.0,155.96,6.41180788]
[1748902398919,18.51796491,155.99,155.96,6.41180788]
[1748902399533,18.51796491,155.99,155.95,6.41219391]
[1748902399831,18.51796491,155.98,155.95,6.41219391]
[1748902400003,18.51796491,155.99,155.95,6.41219391]
[1748902400630,164.91796491,156.0,155.95,24.93015882]
[1748902400832,146.4,155.98,155.95,24.93015882]
[1748902401423,146.4,155.98,155.96,18.51796491]
[1748902401630,146.4,155.98,155.95,24.93015882]
[1748902403036,146.4,155.98,155.96,18.51796491]
[1748902403245,146.4,156.02,155.97,24.92945429]
[1748902403449,146.4,156.02,155.98,18.51796491]
[1748902403928,146.4,156.02,155.97,36.06945429]
[1748902404138,164.91796491,156.02,155.97,36.06945429]
[1748902404347,164.91796491,156.02,155.99,18.51796491]
[1748902404348,146.4,156.02,155.99,18.51796491]
[1748902405524,146.4,156.02,155.98,18.51796491]
[1748902405729,164.91796491,156.02,155.97,17.55148938]
[1748902405926,18.51796491,156.0,155.97,17.55148938]
[1748902406139,18.51796491,155.99,155.97,11.14]
[1748902406344,18.51796491,155.99,155.94,18.51796491]
[1748902406345,18.51796491,155.98,155.92,6.4135454]
[1748902406540,18.51796491,155.94,155.92,6.4135454]
[1748902406936,18.51796491,155.95,155.92,6.4135454]
[1748902408155,18.51796491,155.94,155.92,6.4135454]
[1748902409754,18.51796491,155.94,155.91,17.55379533]
[1748902409940,18.51796491,155.93,155.91,17.55379533]
[1748902411731,18.51796491,155.94,155.91,17.55379533]
[1748902413229,18.51796491,155.92,155.91,17.55379533]
[1748902413455,18.51796491,155.93,155.91,17.55379533]
[1748902413846,188.8113,155.97,155.91,17.55379533]
[1748902414051,18.51796491,155.95,155.91,17.55379533]
[1748902416658,18.51796491,155.94,155.91,17.55379533]
[1748902417433,18.51796491,155.92,155.91,17.55379533]
[1748902417629,18.51796491,155.92,155.91,11.14]
[1748902418044,146.4,155.95,155.91,17.55391622]
[1748902418249,146.4,155.95,155.91,36.07188113]
[1748902418453,164.91796491,155.95,155.91,17.55391622]
[1748902418837,164.91796491,155.95,155.91,33.58880814]
[1748902419051,18.51796491,155.94,155.91,17.55391622]
[1748902419253,164.91796491,155.95,155.91,33.58880814]
[1748902419441,146.4,155.95,155.91,33.58880814]
[1748902419639,18.51796491,155.94,155.91,33.58880814]
[1748902419957,18.51796491,155.94,155.91,17.55391622]
[1748902420776,18.51796491,155.92,155.91,11.14]
[1748902421084,146.4,155.91,155.88,11.14]
[1748902421363,18.51796491,155.89,155.88,11.14]
[1748902422549,18.51796491,155.89,155.88,17.55519117]
[1748902423062,164.91796491,155.9,155.88,17.55519117]
[1748902423363,146.4,155.9,155.88,17.55519117]
[1748902424964,18.51796491,155.94,155.89,18.51796491]
[1748902425167,18.51796491,155.93,155.88,52.11113401]
[1748902425364,40.9,155.95,155.88,52.11113401]
[1748902425545,18.51796491,155.94,155.89,18.51796491]
[1748902428074,18.51796491,155.94,155.9,33.59028864]
[1748902430262,18.51796491,155.95,155.9,52.10825355]
[1748902430867,152.6105,155.96,155.9,84.18009447]
[1748902431066,146.4,155.96,155.92,18.51796491]
[1748902431256,146.4,155.96,155.91,26.0]
[1748902431257,146.4,155.96,155.93,18.51796491]
[1748902431461,146.4,155.96,155.95,6.41231163]
[1748902433790,146.4,155.96,155.93,22.44576422]
[1748902433986,164.91796491,155.96,155.93,22.44576422]
[1748902434188,18.51796491,155.95,155.93,6.41313409]
[1748902434487,18.51796491,155.94,155.93,6.41313409]
[1748902434687,18.51796491,155.95,155.93,6.41313409]
[1748902435272,18.51796491,155.94,155.93,6.41313409]
[1748902435859,18.51796491,155.94,155.92,11.14]
[1748902436164,66.02296491,155.93,155.88,6.41519117]
[1748902436377,18.51796491,155.9,155.88,6.41519117]
[1748902436677,18.51796491,155.91,155.88,6.41519117]
[1748902437183,47.505,155.93,155.87,16.03839204]
[1748902437184,18.51796491,155.9,155.87,22.45399478]
[1748902437776,18.51796491,155.91,155.87,22.45399478]
[1748902437978,47.505,155.93,155.87,22.45399478]
[1748902438181,18.51796491,155.89,155.87,6.41560274]
[1748902439060,146.4,155.92,155.87,6.41560274]
[1748902439384,18.51796491,155.91,155.87,6.41560274]
[1748902440056,18.51796491,155.91,155.87,22.4546096]
[1748902440256,146.4,155.92,155.87,22.4546096]
[1748902440556,146.4,155.92,155.87,40.97257451]
[1748902441185,146.4,155.92,155.87,22.4546096]
[1748902441463,146.4,155.92,155.89,18.51796491]
[1748902442294,146.4,155.92,155.9,6.41436818]
[1748902444174,146.4,155.92,155.89,22.45150755]
[1748902444372,146.4,155.92,155.89,33.59150755]
[1748902444769,146.4,155.92,155.89,52.10947246]
[1748902445589,146.4,155.92,155.9,18.51796491]
[1748902445793,18.51796491,155.96,155.91,18.51796491]
[1748902445981,171.55016491,155.97,155.92,18.51796491]
[1748902446182,146.4,155.97,155.93,18.51796491]
[1748902446491,146.4,155.97,155.94,22.44452994]
[1748902446803,164.91796491,155.97,155.94,22.44452994]
[1748902447873,164.91796491,155.97,155.9,6.41436818]
[1748902447874,18.51796491,155.95,155.9,6.41436818]
[1748902448098,18.51796491,155.94,155.9,6.41436818]
[1748902448295,18.51796491,155.94,155.9,22.45028864]
[1748902449481,18.51796491,155.95,155.9,40.96825355]
[1748902449679,18.51796491,155.95,155.9,22.45028864]
[1748902449882,18.51796491,155.93,155.9,6.41436818]
[1748902450099,18.51796491,155.92,155.9,6.41436818]
[1748902450498,18.51796491,155.93,155.9,6.41436818]
[1748902451277,18.51796491,155.96,155.9,24.93233309]
[1748902451601,146.4,155.95,155.9,24.93233309]
[1748902452179,146.4,155.95,155.92,6.4135454]
[1748902452370,164.91796491,155.95,155.92,22.44740891]
[1748902453302,146.4,155.95,155.92,22.44740891]
[1748902453621,146.4,155.95,155.93,18.51796491]
[1748902453914,146.4,155.95,155.92,40.96537382]
[1748902454200,146.4,155.95,155.93,18.51796491]
[1748902454405,146.4,155.95,155.94,24.93068775]
[1748902454782,146.4,155.95,155.94,6.41272284]
[1748902454995,20.06946491,155.99,155.94,40.96249485]
[1748902455300,1.5515,155.99,155.95,11.12]
[1748902455603,20.06946491,155.99,155.95,11.12]
[1748902456399,20.06946491,155.99,155.96,22.44165169]
[1748902457390,18.51796491,156.0,155.96,22.44165169]
[1748902458095,18.51796491,155.99,155.96,22.44165169]
[1748902459189,18.51796491,155.98,155.96,6.41190048]
[1748902460201,193.3263,156.01,155.96,6.41190048]
[1748902460403,18.51796491,155.99,155.96,6.41190048]
[1748902460904,18.51796491,155.98,155.96,6.41190048]
[1748902462403,18.51796491,155.97,155.96,6.41190048]
[1748902464489,164.91796491,155.97,155.95,17.53215051]
[1748902464696,18.51796491,155.96,155.95,17.53215051]
[1748902468801,18.51796491,155.96,155.95,11.12]
[1748902469331,20.14346491,155.96,155.9,27.15588039]
[1748902469647,187.26,155.95,155.92,18.51796491]
[1748902469796,146.4,155.95,155.92,18.51796491]
[1748902469998,146.4,155.95,155.91,40.96681359]
[1748902471707,164.91796491,155.95,155.91,22.44884868]
[1748902472615,164.91796491,155.95,155.91,6.41395676]
[1748902473000,18.51796491,155.93,155.91,6.41395676]
[1748902473717,18.51796491,155.92,155.9,17.53420096]
[1748902474624,40.86,155.94,155.9,17.53420096]
[1748902474837,40.86,155.94,155.9,36.05216587]
[1748902475001,171.53896491,155.95,155.9,52.08808633]
[1748902478435,212.39896491,155.95,155.9,52.08808633]
[1748902479031,146.4,155.94,155.9,52.08808633]
[1748902479534,146.4,155.94,155.91,18.51796491]
[1748902479835,146.4,155.94,155.92,18.51796491]
[1748902480014,146.4,155.94,155.93,18.51796491]
[1748902481510,146.4,155.94,155.93,24.931099]
[1748902482240,146.4,155.98,155.93,40.96393424]
[1748902482533,146.4,155.98,155.95,18.51796491]
[1748902483513,146.4,155.98,155.96,6.41190048]
[1748902485815,146.4,155.98,155.95,22.44287586]
[1748902487321,146.4,155.98,155.95,33.54287586]
[1748902488118,164.91796491,155.98,155.95,33.54287586]
[1748902488327,18.51796491,155.96,155.95,6.41231163]
[1748902488822,59.35796491,155.96,155.95,6.41231163]
[1748902489322,59.35796491,155.96,155.93,22.44594605]
[1748902490543,59.35796491,155.96,155.93,6.41313409]
[1748902490739,18.51796491,155.95,155.93,6.41313409]
[1748902494237,59.35796491,155.96,155.93,6.41313409]
[1748902496537,40.84,155.96,155.93,6.41313409]
[1748902496748,40.84,155.96,155.93,40.96393424]
[1748902497052,205.75796491,155.97,155.93,40.96393424]
[1748902497255,187.24,155.97,155.93,40.96393424]
[1748902497627,146.4,155.97,155.93,40.96393424]
[1748902499331,18.51796491,155.96,155.93,6.41313409]
[1748902499745,205.73796491,155.95,155.93,6.41313409]
[1748902500330,205.73796491,155.95,155.92,11.1]
[1748902500331,146.4,155.94,155.92,11.1]
[1748902500532,146.4,155.94,155.81,23.15113457]
[1748902500533,164.91796491,155.93,155.85,17.51642605]
[1748902500751,164.91796491,155.93,155.86,16.03943666]
[1748902500752,18.51796491,155.89,155.86,16.03943666]
[1748902500972,59.33796491,155.89,155.86,16.03943666]
[1748902501138,40.82,155.89,155.86,34.55740157]
[1748902501337,146.4,155.93,155.88,18.51796491]
[1748902501661,146.4,155.93,155.89,18.51796491]
[1748902501831,146.4,155.93,155.9,6.41436818]
[1748902502043,18.51796491,155.92,155.9,6.41436818]
[1748902502255,164.91796491,155.93,155.9,6.41436818]
[1748902503848,164.91796491,155.93,155.89,22.45168261]
[1748902504878,146.4,155.93,155.9,18.51796491]
[1748902505049,146.4,155.93,155.89,40.96964752]
[1748902505364,146.4,155.93,155.89,22.45168261]
[1748902505748,146.4,155.92,155.89,22.45168261]
[1748902506159,146.4,155.92,155.89,34.55486787]
[1748902506660,146.4,155.92,155.91,18.51796491]
[1748902506965,205.73796491,155.97,155.91,29.61796491]
[1748902507170,146.4,155.96,155.92,18.51796491]
[1748902507847,146.4,155.96,155.93,18.51796491]
[1748902508173,146.4,155.96,155.94,6.41272284]
[1748902508958,146.4,155.96,155.95,18.51796491]
[1748902509900,18.51796491,156.0,155.95,18.51796491]
[1748902510058,40.82,156.0,155.96,18.51796491]
[1748902510261,164.91796491,156.01,155.97,6.41148938]
[1748902510476,205.73796491,156.01,155.97,22.44021285]
[1748902511564,18.51796491,155.99,155.97,6.41148938]
[1748902512271,18.51796491,155.99,155.95,6.41231163]
[1748902512577,18.51796491,155.98,155.95,6.41231163]
[1748902512767,59.33796491,155.98,155.95,6.41231163]
[1748902513154,40.82,155.98,155.95,6.41231163]
[1748902513373,59.33796491,155.98,155.95,6.41231163]
[1748902513757,40.82,155.98,155.95,40.96105563]
[1748902513973,40.82,155.98,155.96,18.51796491]
[1748902514175,59.33796491,156.0,155.95,40.96105563]
[1748902514667,18.51796491,156.0,155.95,40.96105563]
[1748902514856,40.8,156.0,155.96,18.51796491]
[1748902515056,205.71796491,156.01,155.96,18.51796491]
[1748902515268,164.91796491,156.01,155.96,18.51796491]
[1748902515469,187.2,156.01,155.96,18.51796491]
[1748902515665,187.2,156.01,155.97,18.51796491]
[1748902515883,187.2,156.01,155.96,18.51796491]
[1748902515884,164.91796491,156.01,155.96,18.51796491]
[1748902516471,164.91796491,156.01,155.97,6.41148938]
[1748902517989,164.91796491,156.01,155.99,20.0]
[1748902518302,146.4,156.0,155.99,20.0]
[1748902518695,146.4,156.0,155.99,26.41066735]
[1748902526010,146.4,156.0,155.99,44.92863226]
[1748902527626,146.4,156.05,155.99,60.95530063]
[1748902527833,146.4,156.04,156.0,18.64964886]
[1748902528035,146.4,156.04,156.03,18.51796491]
[1748902529819,146.4,156.04,156.03,24.92698881]
[1748902530830,146.4,156.08,156.03,40.94954857]
[1748902531028,146.4,156.08,156.06,18.51796491]
[1748902532811,146.4,156.08,156.07,6.4073813]
[1748902533007,146.4,156.08,156.07,24.92534621]
[1748902533249,146.4,156.08,156.07,36.00534621]
[1748902533451,146.4,156.11,156.07,52.02379946]
[1748902533734,146.4,156.11,156.09,18.51796491]
[1748902534353,146.4,156.11,156.1,18.51796491]
[1748902534839,146.4,156.14,156.11,6.40573954]
[1748902535141,146.4,156.14,156.1,6.40602579]
[1748902535435,187.16,156.14,156.1,24.9239907]
[1748902535826,146.4,156.14,156.1,24.9239907]
[1748902536025,187.16,156.14,156.1,24.9239907]
[1748902536725,187.16,156.14,156.09,24.92449246]
[1748902536726,205.67796491,156.14,156.09,24.92449246]
[1748902536921,187.16,156.14,156.1,18.51796491]
[1748902537540,187.16,156.14,156.09,24.92449246]
[1748902537743,205.67796491,156.14,156.09,24.92449246]
[1748902538317,146.4,156.13,156.09,24.92449246]
[1748902538945,40.76,156.12,156.08,6.40697078]
[1748902539143,40.76,156.12,156.1,18.51796491]
[1748902539447,40.76,156.12,156.09,18.51796491]
[1748902540729,40.76,156.12,156.08,40.94236265]
[1748902540928,18.51796491,156.11,156.08,6.40697078]
[1748902541129,18.51796491,156.1,156.07,11.08]
[1748902541356,18.51796491,156.08,156.07,11.08]
[1748902541724,18.51796491,156.09,156.07,17.48731143]
[1748902542127,18.51796491,156.09,156.07,11.08]
[1748902542632,59.25796491,156.1,156.07,17.48737547]
[1748902543044,18.51796491,156.09,156.07,17.48737547]
[1748902543237,18.51796491,156.09,156.07,11.08]
[1748902543448,18.51796491,156.08,156.06,6.40765843]
[1748902543749,18.51796491,156.07,156.04,11.06]
[1748902543949,18.51796491,156.06,156.04,11.06]
[1748902544654,18.51796491,156.06,156.04,17.46849439]
[1748902546160,18.51796491,156.05,156.02,17.46908566]
[1748902546364,18.51796491,156.04,156.02,11.06]
[1748902546651,18.51796491,156.03,156.02,11.06]
[1748902547155,18.51796491,156.03,156.02,17.46943468]
[1748902547329,18.51796491,156.03,156.02,11.06]
[1748902547875,24.92698881,156.03,155.99,20.0]
[1748902548159,25.03828805,156.0,155.99,20.0]
[1748902548458,65.77828805,156.0,155.99,20.0]
[1748902548655,72.18854446,156.0,155.99,20.0]
[1748902549037,0.14216157,155.98,155.92,11.06]
[1748902549360,18.51796491,155.93,155.92,11.06]
[1748902551056,18.51796491,155.93,155.92,17.4735454]
[1748902551238,18.51796491,155.93,155.92,11.06]
[1748902551644,18.51796491,155.93,155.92,17.4735454]
[1748902551962,18.51796491,155.93,155.92,11.06]
[1748902552339,18.51796491,155.93,155.92,17.4735454]
[1748902552858,18.51796491,155.93,155.92,11.06]
[1748902554953,18.51796491,155.93,155.92,17.4735454]
[1748902555177,146.54216157,155.99,155.92,17.4735454]
[1748902555330,18.51796491,155.97,155.92,17.4735454]
[1748902555645,18.51796491,155.96,155.92,33.50740891]
[1748902556033,18.51796491,155.95,155.92,17.4735454]
[1748902558360,18.51796491,155.94,155.92,17.4735454]
[1748902559758,18.51796491,155.95,155.92,17.4735454]
[1748902560570,59.25796491,155.96,155.92,17.4735454]
[1748902560742,40.74,155.96,155.92,33.50740891]
[1748902560943,59.25796491,155.96,155.92,33.50740891]
[1748902561146,40.74,155.96,155.92,52.02537382]
[1748902561446,18.51796491,155.95,155.92,33.50740891]
[1748902562148,18.51796491,155.94,155.92,17.4735454]
[1748902562551,164.91796491,155.93,155.92,11.06]
[1748902562745,146.4,155.92,155.9,3.61648319]
[1748902562963,18.51796491,155.91,155.9,3.61648319]
[1748902563773,18.51796491,155.91,155.9,10.03085137]
[1748902563946,164.91796491,155.92,155.9,10.03085137]
[1748902564142,164.91796491,155.92,155.9,6.41436818]
[1748902564450,146.4,155.92,155.9,6.41436818]
[1748902564682,18.51796491,155.91,155.87,11.06]
[1748902564988,18.51796491,155.91,155.88,6.41519117]
[1748902567277,18.51796491,155.89,155.88,6.41519117]
[1748902567778,18.51796491,155.89,155.87,11.06]
[1748902567964,18.51796491,155.88,155.87,11.06]
[1748902568163,18.51796491,155.88,155.87,17.47560274]
[1748902568788,146.4,155.92,155.87,35.99356765]
[1748902568986,146.4,155.92,155.9,18.51796491]
[1748902569188,164.91796491,155.97,155.91,18.51796491]
[1748902569375,146.4,155.97,155.93,18.51796491]
[1748902569691,6.0439,155.98,155.93,29.55796491]